[Event "Schachfestival Open-B 2018"]
[Site "Lueneburg"]
[Date "2018.07.08"]
[Round "2"]
[White "Brockmann, Marc"]
[Black "Matthies, Alexander"]
[Result "1-0"]
[ECO "A29"]
[WhiteElo "1710"]
[BlackElo "1599"]
[Annotator "NA"]
[PlyCount "111"]
[EventDate "2018.07.06"]
[EventType "swiss"]
[EventCountry "GER"]
[SourceTitle "playchess.com"]
[Source "ChessBase"]
[SourceQuality "1"]
[TimeControl "40/5400+30:1800+30"]

1. c4 {[%emt 0:00:00]} e5 {[%emt 0:00:00]} 2. Nc3 {[%emt 0:00:00]} Nf6 {[%emt 0:00:00]} 3. Nf3 {[%emt 0:00:00]} Nc6 {[%emt 0:01:43]} 4. g3 {[%emt 0:00:00]} Be7 {[%emt 0:02:04]} 5. Bg2 {[%emt 0:00:00]} O-O {[%emt 0:00:10]} 6. O-O {[%emt 0:00:12]} d6 {[%emt 0:00:14]} 7. d4 {[%emt 0:00:59]} exd4 {[%emt 0:03:58]} 8. Nxd4 {[%emt 0:01:50]} Ne5 {[%emt 0:00:17]} 9. b3 {[%emt 0:02:53]} c6 {[%emt 0:06:15]} 10. Bb2 {[%emt 0:03:10]} Be6 {[%emt 0:08:48]} 11. Qc2 {[%emt 0:03:24]} Ng6 {[%emt 0:03:23]} 12. Rad1 {[%emt 0:04:44]} Qc8 {[%emt 0:04:13]} 13. Rd2 {[%emt 0:06:49]} Bh3 {[%emt 0:04:40]} 14. Rfd1 {[%emt 0:05:42]} Bxg2 {[%emt 0:00:40]} 15. Kxg2 {[%emt 0:00:04]} Qc7 {[%emt 0:03:14]} 16. Nf5 {[%emt 0:07:37]} Rad8 {[%emt 0:04:12]} 17. Ne4 {[%emt 0:11:04]} Nxe4 {[%emt 0:24:57]} 18. Qxe4 {[%emt 0:00:17]} f6 {[%emt 0:00:41]} 19. Nxe7+ {[%emt 0:10:40]} Nxe7 {[%emt 0:00:23]} 20. Qe6+ {[%emt 0:00:20]} Kh8 {[%emt 0:03:19]} 21. Rxd6 {[%emt 0:05:17]} Nc8 {[%emt 0:01:30]} 22. Rd7 {[%emt 0:06:12]} Rxd7 {[%emt 0:03:49]} 23. Qxd7 {[%emt 0:05:02]} Qxd7 {[%emt 0:06:10]} 24. Rxd7 {[%emt 0:00:05]} b6 {[%emt 0:00:08]} 25. Bc1 {[%emt 0:02:19]} h6 {[%emt 0:01:10]} 26. Bf4 {[%emt 0:00:57]} Re8 {[%emt 0:01:15]} 27. Kf1 {[%emt 0:01:28]} Kh7 {[%emt 0:03:14]} 28. Be3 {[%emt 0:01:02]} Re6 {[%emt 0:01:40]} 29. Rc7 {[%emt 0:02:27]} Ne7 {[%emt 0:01:05]} 30. Rxa7 {[%emt 0:00:39]} c5 {[%emt 0:00:27]} 31. Ra6 {[%emt 0:01:02]} Rc6 {[%emt 0:00:40]} 32. Ra7 {[%emt 0:01:53]} Nf5 {[%emt 0:00:27]} 33. Bd2 {[%emt 0:00:49]} Re6 {[%emt 0:04:38]} 34. Bc3 {[%emt 0:00:39]} Nd6 {[%emt 0:00:19]} 35. Ke1 {[%emt 0:01:26]} Ne4 {[%emt 0:00:36]} 36. Bb2 {[%emt 0:00:59]} Rd6 {[%emt 0:00:41]} 37. Re7 {[%emt 0:02:31]} Nd2 {[%emt 0:03:36]} 38. Re3 {[%emt 0:05:17]} Kg6 {[%emt 0:01:40]} 39. h3 {[%emt 0:02:52]} Kf5 {[%emt 0:01:22]} 40. Rd3 {[%emt 0:01:26]} Rxd3 {[%emt 0:00:14]} 41. exd3 {[%emt 0:30:37]} Nf3+ {[%emt 0:30:14]} 42. Ke2 {[%emt 0:02:17]} Ng1+ {[%emt 0:01:16]} 43. Ke3 {[%emt 0:00:07]} Nxh3 {[%emt 0:00:10]} 44. d4 {[%emt 0:00:07]} Ke6 {[%emt 0:00:00]} 45. d5+ {[%emt 0:00:00]} Kd6 {[%emt 0:00:00]} 46. f4 {[%emt 0:00:00]} Ke7 {[%emt 0:00:00]} 47. Kf3 {[%emt 0:00:00]} Ng1+ {[%emt 0:00:00]} 48. Kf2 {[%emt 0:00:00]} Nh3+ {[%emt 0:00:00]} 49. Kg2 {[%emt 0:00:00]} Nxf4+ {[%emt 0:00:00]} 50. gxf4 {[%emt 0:00:00]} g5 {[%emt 0:00:00]} 51. fxg5 {[%emt 0:00:00]} hxg5 {[%emt 0:00:00]} 52. Bc1 {[%emt 0:00:00]} Kd6 {[%emt 0:00:00]} 53. Kg3 {[%emt 0:00:00]} b5 {[%emt 0:00:00]} 54. Kg4 {[%emt 0:00:00]} bxc4 {[%emt 0:00:00]} 55. bxc4 {[%emt 0:00:00]} Ke5 {[%emt 0:00:00]} 56. Bb2+ 1-0

[Event "Schachfestival Open-B 2018"]
[Site "Lueneburg"]
[Date "2018.07.08"]
[Round "2"]
[White "Groth, Matthias"]
[Black "Suliga, Eckhard"]
[Result "1/2-1/2"]
[ECO "E00"]
[WhiteElo "1661"]
[BlackElo "1722"]
[Annotator "NA"]
[PlyCount "66"]
[EventDate "2018.07.06"]
[EventType "swiss"]
[EventCountry "GER"]
[SourceTitle "playchess.com"]
[Source "ChessBase"]
[SourceQuality "1"]
[TimeControl "40/5400+30:1800+30"]

1. d4 {[%emt 0:00:00]} Nf6 {[%emt 0:00:00]} 2. c4 {[%emt 0:00:00]} e6 {[%emt 0:00:00]} 3. a3 {[%emt 0:03:41]} b6 {[%emt 0:01:58]} 4. Nc3 {[%emt 0:01:07]} Bb7 {[%emt 0:00:35]} 5. Bg5 {[%emt 0:00:59]} h6 {[%emt 0:01:49]} 6. Bh4 {[%emt 0:00:34]} Be7 {[%emt 0:04:12]} 7. e3 {[%emt 0:01:14]} Ne4 {[%emt 0:06:51]} 8. Bxe7 {[%emt 0:05:06]} Qxe7 {[%emt 0:00:18]} 9. Qf3 {[%emt 0:12:14]} Nd6 {[%emt 0:01:19]} 10. Qg3 {[%emt 0:06:19]} Qg5 {[%emt 0:01:16]} 11. Nf3 {[%emt 0:04:06]} Qxg3 {[%emt 0:00:55]} 12. hxg3 {[%emt 0:00:10]} Nc6 {[%emt 0:01:14]} 13. Rd1 {[%emt 0:04:30]} Na5 {[%emt 0:07:20]} 14. Nd2 {[%emt 0:00:36]} c5 {[%emt 0:05:00]} 15. b4 {[%emt 0:05:36]} cxd4 {[%emt 0:04:52]} 16. Nb5 {[%emt 0:04:28]} Nxb5 17. cxb5 {[%emt 0:00:12]} dxe3 {[%emt 0:05:53]} 18. fxe3 {[%emt 0:00:30]} Nc6 {[%emt 0:01:08]} 19. bxc6 {[%emt 0:00:27]} dxc6 {[%emt 0:04:34]} 20. Ne4 {[%emt 0:02:09]} Ke7 {[%emt 0:01:38]} 21. Nd6 {[%emt 0:01:17]} Bc8 {[%emt 0:00:14]} 22. Be2 {[%emt 0:02:16]} Rf8 {[%emt 0:01:19]} 23. Nxc8+ {[%emt 0:01:12]} Raxc8 {[%emt 0:00:01]} 24. Kd2 {[%emt 0:01:06]} c5 {[%emt 0:00:24]} 25. b5 {[%emt 0:00:27]} Rfd8+ {[%emt 0:10:30]} 26. Kc3 {[%emt 0:01:14]} Kf6 27. Bf3 Ke7 {[%emt 0:03:25]} 28. Bc6 {[%emt 0:04:04]} Rxd1 {[%emt 0:00:27]} 29. Rxd1 {[%emt 0:00:28]} Rd8 {[%emt 0:00:07]} 30. Rxd8 {[%emt 0:04:45]} Kxd8 {[%emt 0:00:01]} 31. e4 {[%emt 0:01:31]} Ke7 {[%emt 0:00:47]} 32. e5 {[%emt 0:02:28]} Kf8 {[%emt 0:07:52]} 33. g4 {[%emt 0:01:06]} g5 1/2-1/2

[Event "Schachfestival Open-B 2018"]
[Site "Lueneburg"]
[Date "2018.07.08"]
[Round "2"]
[White "Rothenberg, Nina"]
[Black "Vahabi, Reza"]
[Result "1/2-1/2"]
[ECO "B13"]
[WhiteElo "1637"]
[BlackElo "1711"]
[Annotator "NA"]
[PlyCount "43"]
[EventDate "2018.07.06"]
[EventType "swiss"]
[EventCountry "GER"]
[SourceTitle "playchess.com"]
[Source "ChessBase"]
[SourceQuality "1"]
[TimeControl "40/5400+30:1800+30"]

1. e4 {[%emt 0:00:00]} d5 {[%emt 0:00:00]} 2. exd5 {[%emt 0:00:00]} c6 {[%emt 0:00:00]} 3. d4 {[%emt 0:01:59]} cxd5 {[%emt 0:00:05]} 4. Bd3 {[%emt 0:01:36]} Nf6 {[%emt 0:00:24]} 5. Bf4 {[%emt 0:01:34]} Nc6 {[%emt 0:00:24]} 6. c3 {[%emt 0:01:40]} a6 {[%emt 0:03:58]} 7. a4 {[%emt 0:04:31]} Bg4 {[%emt 0:00:33]} 8. Nf3 {[%emt 0:04:06]} e6 {[%emt 0:01:02]} 9. Nbd2 {[%emt 0:01:35]} Bd6 {[%emt 0:04:41]} 10. Bxd6 {[%emt 0:02:42]} Qxd6 {[%emt 0:00:12]} 11. O-O {[%emt 0:02:01]} Rc8 {[%emt 0:03:39]} 12. b4 {[%emt 0:07:39]} Nb8 13. Qb3 {[%emt 0:02:14]} O-O {[%emt 0:04:29]} 14. Rfe1 {[%emt 0:10:50]} Qf4 {[%emt 0:04:40]} 15. Qb2 {[%emt 0:09:36]} Bxf3 {[%emt 0:08:07]} 16. Nxf3 {[%emt 0:00:40]} Nbd7 {[%emt 0:02:31]} 17. a5 {[%emt 0:03:47]} Rc7 {[%emt 0:01:46]} 18. Rac1 {[%emt 0:07:21]} Rfc8 {[%emt 0:01:19]} 19. h3 {[%emt 0:01:09]} Ne8 {[%emt 0:06:22]} 20. b5 {[%emt 0:01:18]} Qd6 {[%emt 0:07:12]} 21. Re2 {[%emt 0:03:35]} Nb8 {[%emt 0:06:23]} 22. Rec2 {[%emt 0:05:15]} 1/2-1/2

[Event "Schachfestival Open-B 2018"]
[Site "Lueneburg"]
[Date "2018.07.09"]
[Round "3"]
[White "Domschke, Stephan"]
[Black "Rothenberg, Nina"]
[Result "0-1"]
[ECO "D00"]
[WhiteElo "1722"]
[BlackElo "1611"]
[Annotator "NA"]
[PlyCount "88"]
[EventDate "2018.07.06"]
[EventType "swiss"]
[EventCountry "GER"]
[SourceTitle "playchess.com"]
[Source "ChessBase"]
[SourceQuality "1"]
[TimeControl "40/5400+30:1800+30"]

1. d4 {[%emt 0:00:00]} d5 {[%emt 0:00:00]} 2. Bf4 {[%emt 0:00:00]} Nf6 {[%emt 0:00:00]} 3. e3 {[%emt 0:00:00]} Bf5 {[%emt 0:01:15]} 4. c4 {[%emt 0:01:37]} c6 {[%emt 0:00:57]} 5. Nd2 {[%emt 0:00:15]} e6 {[%emt 0:01:33]} 6. Qb3 {[%emt 0:00:50]} Qd7 {[%emt 0:01:45]} 7. Ngf3 {[%emt 0:00:45]} Be7 {[%emt 0:03:16]} 8. Be2 {[%emt 0:01:36]} h6 {[%emt 0:02:16]} 9. h3 {[%emt 0:03:42]} O-O {[%emt 0:01:51]} 10. c5 {[%emt 0:02:21]} Re8 {[%emt 0:03:11]} 11. g4 {[%emt 0:05:29]} Bh7 {[%emt 0:02:04]} 12. Ne5 {[%emt 0:00:33]} Qc8 {[%emt 0:01:06]} 13. h4 {[%emt 0:01:13]} Nfd7 {[%emt 0:05:28]} 14. Ndf3 {[%emt 0:01:57]} Nxe5 {[%emt 0:03:47]} 15. Nxe5 {[%emt 0:00:37]} Nd7 {[%emt 0:01:58]} 16. Nd3 {[%emt 0:10:54]} f6 {[%emt 0:06:43]} 17. Rc1 {[%emt 0:06:52]} Bf8 {[%emt 0:10:16]} 18. f3 {[%emt 0:09:19]} Kh8 {[%emt 0:02:00]} 19. Qd1 {[%emt 0:05:14]} e5 {[%emt 0:03:33]} 20. Bg3 {[%emt 0:00:52]} Re6 {[%emt 0:04:37]} 21. Nf2 {[%emt 0:07:55]} Qe8 {[%emt 0:07:38]} 22. O-O {[%emt 0:00:49]} exd4 {[%emt 0:01:45]} 23. e4 {[%emt 0:03:50]} dxe4 {[%emt 0:08:11]} 24. fxe4 {[%emt 0:00:51]} Bxc5 {[%emt 0:01:55]} 25. Bd3 {[%emt 0:00:46]} b6 {[%emt 0:03:14]} 26. Re1 {[%emt 0:02:48]} Ne5 {[%emt 0:02:33]} 27. Bxe5 {[%emt 0:02:10]} fxe5 {[%emt 0:01:16]} 28. Kh2 {[%emt 0:01:43]} Qe7 {[%emt 0:01:40]} 29. Kg3 {[%emt 0:01:13]} Rf8 {[%emt 0:01:54]} 30. Rf1 {[%emt 0:00:42]} Ref6 {[%emt 0:00:42]} 31. Qe2 {[%emt 0:00:13]} Qf7 {[%emt 0:01:02]} 32. Nh3 {[%emt 0:03:05]} Rxf1 {[%emt 0:00:25]} 33. Rxf1 {[%emt 0:00:59]} Qxf1 {[%emt 0:00:06]} 34. Qxf1 {[%emt 0:04:36]} Rxf1 {[%emt 0:00:02]} 35. Bxf1 {[%emt 0:00:02]} Bxe4 {[%emt 0:00:27]} 36. Nf2 {[%emt 0:00:08]} Bd5 {[%emt 0:01:25]} 37. b3 {[%emt 0:00:31]} Kg8 {[%emt 0:01:10]} 38. Bd3 {[%emt 0:01:35]} Bd6 {[%emt 0:01:51]} 39. Be4 {[%emt 0:01:16]} d3 {[%emt 0:01:33]} 40. Kf3 {[%emt 0:01:36]} d2 {[%emt 0:03:01]} 41. Ke2 {[%emt 0:31:03]} Bc5 {[%emt 0:31:03]} 42. Bc2 {[%emt 0:05:11]} Be6 {[%emt 0:01:49]} 43. g5 {[%emt 0:00:54]} Bxf2 {[%emt 0:00:15]} 44. Kxf2 Bg4 {[%emt 0:00:30]} 0-1

[Event "Schachfestival Open-B 2018"]
[Site "Lueneburg"]
[Date "2018.07.09"]
[Round "3"]
[White "Suliga, Eckhard"]
[Black "Raedisch, Peter"]
[Result "1-0"]
[ECO "C64"]
[WhiteElo "1722"]
[BlackElo "1606"]
[Annotator "NA"]
[PlyCount "187"]
[EventDate "2018.07.06"]
[EventType "swiss"]
[EventCountry "GER"]
[SourceTitle "playchess.com"]
[Source "ChessBase"]
[SourceQuality "1"]
[TimeControl "40/5400+30:1800+30"]

1. e4 {[%emt 0:00:00]} e5 {[%emt 0:12:33]} 2. Nf3 {[%emt 0:00:23]} Nc6 {[%emt 0:00:31]} 3. Bb5 {[%emt 0:00:09]} Bc5 {[%emt 0:00:38]} 4. c3 {[%emt 0:00:24]} Qe7 {[%emt 0:01:22]} 5. O-O {[%emt 0:00:17]} a6 {[%emt 0:01:15]} 6. Bxc6 {[%emt 0:05:12]} dxc6 {[%emt 0:01:06]} 7. Nxe5 {[%emt 0:06:40]} Be6 {[%emt 0:01:13]} 8. d4 {[%emt 0:01:22]} O-O-O {[%emt 0:00:54]} 9. Nd2 {[%emt 0:04:28]} Ba7 {[%emt 0:00:49]} 10. Qe2 {[%emt 0:04:19]} f6 {[%emt 0:00:53]} 11. Nec4 {[%emt 0:05:56]} h5 {[%emt 0:00:34]} 12. Nf3 {[%emt 0:06:49]} g5 {[%emt 0:01:22]} 13. e5 {[%emt 0:01:31]} Bg4 {[%emt 0:03:33]} 14. h3 {[%emt 0:00:38]} Bd7 {[%emt 0:03:16]} 15. Re1 {[%emt 0:04:02]} g4 {[%emt 0:01:02]} 16. Nh4 {[%emt 0:00:59]} gxh3 {[%emt 0:01:46]} 17. e6 {[%emt 0:07:01]} Be8 {[%emt 0:00:42]} 18. g3 {[%emt 0:03:27]} Qh7 {[%emt 0:01:01]} 19. Qe4 {[%emt 0:01:09]} Ne7 {[%emt 0:00:43]} 20. Qxh7 {[%emt 0:02:27]} Rxh7 {[%emt 0:01:26]} 21. Kh2 {[%emt 0:05:29]} c5 {[%emt 0:00:44]} 22. dxc5 {[%emt 0:02:48]} Bxc5 {[%emt 0:00:38]} 23. Be3 {[%emt 0:00:08]} Bxe3 {[%emt 0:03:34]} 24. Nxe3 {[%emt 0:04:35]} Rd2 {[%emt 0:00:41]} 25. Nd1 {[%emt 0:00:28]} Bc6 {[%emt 0:02:01]} 26. Kxh3 {[%emt 0:00:24]} Rg7 {[%emt 0:01:02]} 27. f4 {[%emt 0:03:07]} f5 {[%emt 0:00:25]} 28. Ne3 {[%emt 0:01:45]} Be4 {[%emt 0:06:53]} 29. Nc4 {[%emt 0:00:50]} Rd3 {[%emt 0:02:55]} 30. Rg1 {[%emt 0:01:37]} Nd5 {[%emt 0:04:15]} 31. Raf1 {[%emt 0:02:05]} b5 {[%emt 0:00:47]} 32. Ne5 {[%emt 0:02:00]} Rd2 {[%emt 0:01:31]} 33. c4 {[%emt 0:01:18]} bxc4 {[%emt 0:02:00]} 34. Nxc4 {[%emt 0:00:24]} Rc2 {[%emt 0:00:24]} 35. Rc1 {[%emt 0:00:37]} Kd8 {[%emt 0:06:18]} 36. Rxc2 {[%emt 0:04:49]} Bxc2 {[%emt 0:05:13]} 37. Rg2 {[%emt 0:04:13]} Be4 {[%emt 0:01:14]} 38. Rd2 {[%emt 0:00:34]} Ke7 {[%emt 0:00:14]} 39. Rf2 {[%emt 0:05:05]} Kxe6 {[%emt 0:00:33]} 40. Nf3 {[%emt 0:00:51]} Rg8 {[%emt 0:03:02]} 41. Ncd2 {[%emt 0:32:58]} Bd3 {[%emt 0:31:19]} 42. Ng5+ {[%emt 0:01:05]} Kf6 {[%emt 0:00:42]} 43. Rf3 {[%emt 0:01:38]} Be2 {[%emt 0:00:51]} 44. Rf2 {[%emt 0:01:55]} Bg4+ {[%emt 0:00:28]} 45. Kh2 {[%emt 0:00:08]} Re8 {[%emt 0:01:08]} 46. Nc4 {[%emt 0:01:06]} Re1 {[%emt 0:01:28]} 47. Rd2 {[%emt 0:01:30]} Ne3 {[%emt 0:04:55]} 48. Nxe3 {[%emt 0:00:24]} Rxe3 {[%emt 0:00:11]} 49. Rc2 {[%emt 0:00:45]} c5 {[%emt 0:00:54]} 50. Rd2 {[%emt 0:01:30]} c4 {[%emt 0:00:57]} 51. Kg2 {[%emt 0:00:00]} Rd3 {[%emt 0:00:00]} 52. Rxd3 {[%emt 0:00:00]} cxd3 {[%emt 0:00:00]} 53. Nf3 {[%emt 0:00:00]} Ke6 {[%emt 0:00:00]} 54. Kf2 {[%emt 0:00:00]} Kd5 {[%emt 0:00:00]} 55. Nd2 {[%emt 0:00:00]} Kd4 {[%emt 0:00:00]} 56. a3 {[%emt 0:00:00]} a5 {[%emt 0:00:00]} 57. Ke1 {[%emt 0:00:00]} a4 {[%emt 0:00:00]} 58. b4 {[%emt 0:00:00]} Be2 {[%emt 0:00:00]} 59. Nb1 {[%emt 0:00:00]} Kc4 {[%emt 0:00:00]} 60. Kd2 {[%emt 0:00:00]} Kb3 {[%emt 0:00:00]} 61. b5 {[%emt 0:00:00]} Kb2 {[%emt 0:00:00]} 62. b6 {[%emt 0:00:00]} Bf3 {[%emt 0:00:00]} 63. Nc3 {[%emt 0:00:00]} Kxa3 {[%emt 0:00:00]} 64. Kxd3 {[%emt 0:00:00]} Kb3 {[%emt 0:00:00]} 65. Nb1 {[%emt 0:00:00]} Kb2 {[%emt 0:00:00]} 66. Nd2 {[%emt 0:00:00]} Bb7 {[%emt 0:00:00]} 67. Nc4+ {[%emt 0:00:24]} Ka2 {[%emt 0:00:00]} 68. Kc2 {[%emt 0:02:10]} a3 {[%emt 0:00:00]} 69. Na5 {[%emt 0:01:18]} Be4+ {[%emt 0:00:00]} 70. Kc1 {[%emt 0:00:02]} Bd5 {[%emt 0:00:00]} 71. b7 {[%emt 0:00:07]} Bxb7 {[%emt 0:00:00]} 72. Nxb7 {[%emt 0:00:10]} Kb3 {[%emt 0:00:00]} 73. Kb1 {[%emt 0:00:23]} Kc3 {[%emt 0:00:00]} 74. Nd6 {[%emt 0:00:10]} Kd4 {[%emt 0:00:00]} 75. Nxf5+ Ke4 76. Ng7 {[%emt 0:00:49]} h4 {[%emt 0:00:00]} 77. gxh4 {[%emt 0:03:44]} Kxf4 {[%emt 0:00:00]} 78. Ne6+ {[%emt 0:02:50]} Kf5 {[%emt 0:00:00]} 79. Nd4+ {[%emt 0:00:32]} Kf4 {[%emt 0:00:00]} 80. Ka2 {[%emt 0:00:34]} Kg4 {[%emt 0:00:00]} 81. Nf3 {[%emt 0:00:02]} Kf5 {[%emt 0:00:00]} 82. Kxa3 Kf6 {[%emt 0:00:00]} 83. Kb4 {[%emt 0:00:13]} Kf5 {[%emt 0:00:00]} 84. Kc5 {[%emt 0:00:12]} Kf6 {[%emt 0:00:00]} 85. Kd6 {[%emt 0:00:18]} Kg6 {[%emt 0:00:00]} 86. Ke6 {[%emt 0:00:09]} Kh6 {[%emt 0:00:00]} 87. Kf6 {[%emt 0:00:42]} Kh7 {[%emt 0:00:00]} 88. Kg5 {[%emt 0:00:16]} Kg7 {[%emt 0:00:00]} 89. Nd4 {[%emt 0:00:17]} Kh7 {[%emt 0:00:00]} 90. Nf5 {[%emt 0:00:14]} Kh8 {[%emt 0:00:00]} 91. Kg6 {[%emt 0:00:26]} Kg8 {[%emt 0:00:00]} 92. Nd6 {[%emt 0:00:19]} Kh8 93. Nf7+ Kg8 {[%emt 0:00:00]} 94. h5 {[%emt 0:00:33]} 1-0

[Event "Schachfestival Open-B 2018"]
[Site "Lueneburg"]
[Date "2018.07.09"]
[Round "3"]
[White "Suliga, Eckhard"]
[Black "Rothenberg, Nina"]
[Result "*"]
[WhiteElo "1722"]
[BlackElo "1611"]
[Annotator "NA"]
[PlyCount "34"]
[EventDate "2018.07.06"]
[EventType "swiss"]
[EventCountry "GER"]
[SourceTitle "playchess.com"]
[Source "ChessBase"]
[SourceQuality "1"]
[TimeControl "40/5400+30:1800+30"]

1. d4 {[%emt 0:00:00]} d5 {[%emt 0:00:00]} 2. Bf4 {[%emt 0:00:00]} Nf6 {[%emt 0:00:00]} 3. e3 {[%emt 0:00:00]} Bf5 {[%emt 0:01:15]} 4. c4 {[%emt 0:01:37]} c6 {[%emt 0:00:57]} 5. Nd2 {[%emt 0:00:15]} e6 {[%emt 0:01:33]} 6. Qb3 {[%emt 0:00:50]} Qd7 {[%emt 0:01:45]} 7. Ngf3 {[%emt 0:00:45]} Be7 {[%emt 0:03:16]} 8. Be2 {[%emt 0:01:36]} h6 {[%emt 0:02:16]} 9. h3 {[%emt 0:03:42]} O-O {[%emt 0:01:51]} 10. c5 {[%emt 0:02:21]} Re8 {[%emt 0:03:11]} 11. g4 {[%emt 0:05:29]} Bh7 {[%emt 0:02:04]} 12. Ne5 {[%emt 0:00:33]} Qc8 {[%emt 0:01:06]} 13. h4 {[%emt 0:01:13]} Nfd7 {[%emt 0:05:28]} 14. Ndf3 {[%emt 0:01:57]} Nxe5 {[%emt 0:03:47]} 15. Nxe5 {[%emt 0:00:37]} Nd7 {[%emt 0:01:58]} 16. Nd3 {[%emt 0:10:54]} f6 {[%emt 0:06:43]} 17. Rc1 {[%emt 0:06:52]} Bf8 {[%emt 0:10:16]} *

[Event "Schachfestival Open-B 2018"]
[Site "Lueneburg"]
[Date "2018.07.09"]
[Round "3"]
[White "Hinnenberg, Benjamin"]
[Black "Rausch, Darius"]
[Result "1-0"]
[ECO "E60"]
[WhiteElo "1707"]
[BlackElo "1658"]
[Annotator "NA"]
[PlyCount "73"]
[EventDate "2018.07.06"]
[EventType "swiss"]
[EventCountry "GER"]
[SourceTitle "playchess.com"]
[Source "ChessBase"]
[SourceQuality "1"]
[TimeControl "40/5400+30:1800+30"]

1. d4 {[%emt 0:00:00]} Nf6 {[%emt 0:00:00]} 2. Nf3 {[%emt 0:00:00]} g6 {[%emt 0:00:00]} 3. g3 {[%emt 0:00:00]} Bg7 {[%emt 0:00:00]} 4. Bg2 {[%emt 0:01:31]} O-O {[%emt 0:00:00]} 5. O-O {[%emt 0:00:09]} d6 {[%emt 0:00:00]} 6. c4 {[%emt 0:03:34]} c5 {[%emt 0:01:00]} 7. Qb3 {[%emt 0:02:12]} Nc6 {[%emt 0:01:18]} 8. dxc5 {[%emt 0:02:06]} dxc5 {[%emt 0:02:00]} 9. Rd1 {[%emt 0:00:15]} Qc7 {[%emt 0:01:45]} 10. Be3 {[%emt 0:04:41]} Na5 {[%emt 0:05:32]} 11. Qc2 {[%emt 0:09:28]} Bf5 {[%emt 0:03:29]} 12. Qc1 {[%emt 0:00:09]} Qb6 {[%emt 0:13:46]} 13. Nc3 {[%emt 0:07:21]} Rac8 {[%emt 0:19:54]} 14. Ne5 {[%emt 0:13:49]} Qe6 {[%emt 0:13:32]} 15. Nd3 {[%emt 0:13:54]} b6 {[%emt 0:03:29]} 16. Nd5 {[%emt 0:02:17]} Bxd3 {[%emt 0:07:11]} 17. Rxd3 {[%emt 0:01:06]} Nxd5 {[%emt 0:01:05]} 18. Bxd5 {[%emt 0:01:19]} Qe5 {[%emt 0:04:31]} 19. Rb1 {[%emt 0:00:19]} e6 {[%emt 0:05:02]} 20. Bf3 {[%emt 0:02:11]} Qc7 {[%emt 0:03:16]} 21. Bf4 {[%emt 0:02:59]} Be5 {[%emt 0:01:36]} 22. Bd2 {[%emt 0:03:12]} Nc6 {[%emt 0:00:54]} 23. Bxc6 {[%emt 0:00:02]} Qxc6 {[%emt 0:00:11]} 24. Bh6 {[%emt 0:00:28]} Rfd8 {[%emt 0:00:24]} 25. Qd2 {[%emt 0:01:30]} Qc7 {[%emt 0:01:52]} 26. Rd1 {[%emt 0:02:07]} Rxd3 {[%emt 0:00:57]} 27. Qxd3 {[%emt 0:01:43]} Bxb2 {[%emt 0:00:58]} 28. Qd7 {[%emt 0:02:01]} Bf6 {[%emt 0:01:33]} 29. e4 {[%emt 0:03:07]} Bd4 {[%emt 0:01:23]} 30. Qa4 {[%emt 0:02:03]} Rd8 {[%emt 0:01:13]} 31. Kg2 {[%emt 0:00:44]} Qd7 {[%emt 0:01:57]} 32. Qb3 {[%emt 0:00:20]} Qc6 {[%emt 0:00:58]} 33. Qf3 {[%emt 0:00:40]} Qa4 {[%emt 0:01:22]} 34. Rxd4 {[%emt 0:00:18]} f5 {[%emt 0:02:17]} 35. Rxd8+ {[%emt 0:01:18]} Kf7 {[%emt 0:00:06]} 36. Qc3 {[%emt 0:00:57]} Qc6 {[%emt 0:01:13]} 37. Qg7# {[%emt 0:00:12]} 1-0

[Event "Schachfestival Open-B 2018"]
[Site "Lueneburg"]
[Date "2018.07.09"]
[Round "3"]
[White "Cordsen, Heinrich"]
[Black "Kaesemann, Holger"]
[Result "0-1"]
[ECO "B06"]
[WhiteElo "1685"]
[BlackElo "1746"]
[Annotator "NA"]
[PlyCount "71"]
[EventDate "2018.07.06"]
[EventType "swiss"]
[EventCountry "GER"]
[SourceTitle "playchess.com"]
[Source "ChessBase"]
[SourceQuality "1"]
[TimeControl "40/5400+30:1800+30"]

1. e4 {[%emt 0:00:00]} g6 {[%emt 0:00:00]} 2. d4 {[%emt 0:01:16]} Bg7 {[%emt 0:00:00]} 3. Nf3 {[%emt 0:02:06]} e6 {[%emt 0:00:36]} 4. Be3 {[%emt 0:04:22]} Ne7 {[%emt 0:00:12]} 5. Bd3 {[%emt 0:04:29]} d6 {[%emt 0:00:22]} 6. Nc3 {[%emt 0:01:23]} Nd7 {[%emt 0:00:10]} 7. Ne2 {[%emt 0:01:40]} b6 {[%emt 0:00:45]} 8. c3 {[%emt 0:02:22]} Bb7 {[%emt 0:00:34]} 9. Qc2 {[%emt 0:02:13]} Rc8 {[%emt 0:00:49]} 10. Qd2 {[%emt 0:05:06]} h6 {[%emt 0:00:40]} 11. O-O {[%emt 0:02:48]} Nf6 {[%emt 0:01:42]} 12. Ng3 {[%emt 0:04:36]} Ng4 {[%emt 0:07:47]} 13. b4 {[%emt 0:05:38]} Nxe3 {[%emt 0:00:09]} 14. fxe3 {[%emt 0:01:06]} O-O {[%emt 0:00:29]} 15. h3 {[%emt 0:07:02]} c5 {[%emt 0:02:24]} 16. b5 {[%emt 0:05:45]} Qc7 {[%emt 0:12:07]} 17. Rac1 {[%emt 0:05:00]} Qd7 {[%emt 0:05:13]} 18. a4 {[%emt 0:01:44]} Ra8 {[%emt 0:05:09]} 19. Qe2 {[%emt 0:03:46]} Rfc8 {[%emt 0:11:19]} 20. h4 {[%emt 0:02:52]} Qc7 {[%emt 0:01:20]} 21. Qf2 {[%emt 0:10:53]} Rf8 {[%emt 0:01:20]} 22. Qe2 {[%emt 0:02:23]} Rae8 {[%emt 0:02:46]} 23. c4 {[%emt 0:00:56]} f5 {[%emt 0:03:55]} 24. d5 {[%emt 0:05:33]} fxe4 {[%emt 0:02:49]} 25. Bxe4 {[%emt 0:01:34]} exd5 {[%emt 0:00:31]} 26. cxd5 {[%emt 0:02:53]} Nxd5 {[%emt 0:22:05]} 27. Qc4 {[%emt 0:02:39]} Rxe4 {[%emt 0:02:02]} 28. Nxe4 {[%emt 0:01:19]} Kh7 {[%emt 0:01:00]} 29. Rce1 {[%emt 0:02:40]} Qe7 {[%emt 0:03:38]} 30. Ng3 {[%emt 0:04:04]} Nxe3 {[%emt 0:02:59]} 31. Qd3 {[%emt 0:01:20]} Bxf3 {[%emt 0:00:46]} 32. Rxf3 {[%emt 0:02:25]} Rxf3 {[%emt 0:01:27]} 33. gxf3 {[%emt 0:00:06]} Qxh4 {[%emt 0:01:12]} 34. Qxd6 {[%emt 0:02:08]} Nf5 {[%emt 0:00:46]} 35. Kg2 {[%emt 0:00:39]} Nxd6 {[%emt 0:01:56]} 36. Rh1 0-1